fUST/lending_fUST_20250126
["ID","MTS","AMOUNT","RATE_DAILY","PERIOD"]
[350416846,1737849049641,-500.0,0.00016575,2]
[350416847,1737849049650,-500.0,0.00016575,2]
[350416848,1737849049660,-500.0,0.00016575,2]
[350416849,1737849049669,-500.0,0.00016575,2]
[350416850,1737849049678,-500.0,0.00016575,2]
[350416851,1737849049687,-500.0,0.00016575,2]
[350416852,1737849049696,-8335.33,0.00016575,2]
[350416853,1737849049705,-500.0,0.00016575,2]
[350416854,1737849049715,-646.39,0.00016575,2]
[350416855,1737849049724,-500.0,0.00016575,2]
[350416856,1737849049733,-500.0,0.00016575,2]
[350416857,1737849049742,-500.0,0.00016575,2]
[350416858,1737849049751,-824.28,0.00016575,2]
[350416859,1737849049761,-682.03,0.00016575,2]
[350416860,1737849049771,-152.0,0.00016597,2]
[350416861,1737849049780,-151.0,0.000166,2]
[350416862,1737849049789,-215.2923755,0.000166,2]
[350416863,1737849049798,-153.9757311,0.000166,2]
[350416864,1737849049808,-317.5126754,0.000166,2]
[350416865,1737849049817,-354.0685108,0.000166,2]
[350416866,1737849049829,-153.0,0.000166,2]
[350416867,1737849049840,-153.0,0.000166,2]
[350416868,1737849049852,-354.0685108,0.000166,2]
[350416869,1737849049862,-354.0685108,0.000166,2]
[350416870,1737849049872,-354.0685108,0.000166,2]
[350416871,1737849049881,-354.0685108,0.000166,2]
[350416872,1737849049890,-354.0685108,0.000166,2]
[350416873,1737849049899,-354.0685108,0.000166,2]
[350416874,1737849049909,-354.0685108,0.000166,2]
[350416875,1737849049918,-354.0685108,0.000166,2]
[350416876,1737849049927,-354.0685108,0.000166,2]
[350416877,1737849049939,-259.692,0.0001663,2]
[350416878,1737849049950,-536.0,0.0001663,2]
[350416879,1737849049959,-2057.0,0.0001663,2]
[350416880,1737849049968,-2305.0,0.0001663,2]
[350416881,1737849049978,-247.0,0.0001663,2]
[350416882,1737849049987,-182.436,0.0001663,2]
[350416883,1737849049996,-500.0,0.00016642,2]
[350416884,1737849050006,-151.0,0.000167,2]
[350416885,1737849050015,-500.0,0.00016712,2]
[350416886,1737849050024,-405.47217733,0.00016712,2]
[350416887,1737849050033,-500.0,0.00016712,2]
[350416888,1737849050042,-500.0,0.00016712,2]
[350416889,1737849050051,-500.0,0.00016712,2]
[350416890,1737849050061,-500.0,0.00016712,2]
[350416891,1737849050070,-500.0,0.00016712,2]
[350416892,1737849050079,-500.0,0.00016712,2]
[350416893,1737849050089,-500.0,0.00016712,2]
[350416894,1737849050099,-922.09,0.00016712,2]
[350416895,1737849050109,-500.0,0.00016712,2]
[350416896,1737849050118,-500.0,0.00016712,2]
[350416897,1737849050128,-688.0,0.00016712,2]
[350416898,1737849050138,-2264.65,0.00016712,2]
[350416899,1737849050147,-500.0,0.00016712,2]
[350416900,1737849050156,-500.0,0.00016712,2]
[350416901,1737849050166,-500.0,0.00016712,2]
[350416902,1737849050176,-1193.72,0.00016712,2]
[350416903,1737849050186,-500.0,0.00016712,2]
[350416904,1737849050195,-500.0,0.00016712,2]
[350416905,1737849050205,-500.0,0.00016712,2]
[350416906,1737849050214,-500.0,0.00016712,2]
[350416907,1737849050224,-324.92486364,0.00016712,2]
[350416908,1737849050234,-5632.0,0.00016712,2]
[350416909,1737849050243,-1610.75,0.00016712,2]
[350416910,1737849050252,-500.0,0.00016712,2]
[350416911,1737849050262,-500.0,0.00016712,2]
[350416912,1737849050271,-500.0,0.00016712,2]
[350416913,1737849050281,-2058.38,0.00016712,2]
[350416914,1737849050290,-500.0,0.00016712,2]
[350416915,1737849050300,-516.14223237,0.00016712,2]
[350416916,1737849050311,-500.0,0.00016712,2]
[350416917,1737849050320,-578.21980546,0.00016712,2]
[350416918,1737849050330,-660.47,0.00016712,2]
[350416919,1737849050339,-716.1,0.00016712,2]
[350416920,1737849050348,-500.0,0.00016712,2]
[350416921,1737849050358,-500.0,0.00016712,2]
[350416922,1737849050368,-500.0,0.00016712,2]
[350416923,1737849050378,-798.52,0.00016712,2]
[350416924,1737849050387,-918.45,0.00016712,2]
[350416925,1737849050396,-3553.16,0.00016712,2]
[350416926,1737849050406,-500.0,0.00016712,2]
[350416927,1737849050416,-500.0,0.00016712,2]
[350416928,1737849050426,-500.0,0.00016712,2]
[350416929,1737849050435,-500.0,0.00016712,2]
[350416930,1737849050445,-586.71793422,0.00016712,2]
[350416931,1737849050464,-626.48507443,0.00016712,2]
[350416932,1737849175705,400.0,0.00013973,2]
[350416933,1737849193834,3000.0,0.00022,30]
[350416934,1737849421256,166.447179,0.00013699,2]
[350416936,1737849625512,4521.14,0.000218,30]
[350416940,1737850049477,400.0,0.00013973,2]
[350417134,1737850238054,-167.659085,0.00015398,2]
[350417135,1737850238063,-198.095,0.0001587,2]
[350417136,1737850238073,-178.52498573,0.00016338,2]
[350417137,1737850238082,-300.0,0.00016436,2]
[350417138,1737850238092,-330.0,0.00016437,2]
[350417139,1737850238102,-500.0,0.00016437,2]
[350417140,1737850238111,-500.0,0.00016437,2]
[350417141,1737850238122,-500.0,0.00016437,2]
[350417142,1737850238131,-500.0,0.00016437,2]
[350417143,1737850238142,-323.3339372,0.00016437,2]
[350417144,1737850238152,-201.32570508,0.00016437,2]
[350417145,1737850238162,-500.0,0.00016437,2]
[350417146,1737850238171,-500.0,0.00016437,2]
[350417147,1737850238180,-500.0,0.00016437,2]
[350417148,1737850238189,-500.0,0.00016437,2]
[350417149,1737850238199,-195.26409777,0.00016437,2]
[350417150,1737850238208,-500.0,0.00016437,2]
[350417151,1737850238217,-500.0,0.00016437,2]
[350417152,1737850238226,-500.0,0.00016437,2]
[350417153,1737850238235,-243.91823308,0.00016437,2]
[350417154,1737850238244,-500.0,0.00016438,2]
[350417155,1737850238253,-385.74779881,0.00016438,2]
[350417156,1737850238263,-500.0,0.00016438,2]
[350417157,1737850238271,-500.0,0.00016438,2]
[350417158,1737850238281,-500.0,0.00016438,2]
[350417159,1737850238290,-500.0,0.00016438,2]
[350417160,1737850238299,-500.0,0.00016438,2]
[350417161,1737850238309,-500.0,0.00016438,2]
[350417162,1737850238319,-500.0,0.00016438,2]
[350417163,1737850238328,-270.30958273,0.00016438,2]
[350417164,1737850238347,-229.69041727,0.00016438,2]
[350417165,1737850238355,-500.0,0.00016438,2]
[350417166,1737850238365,-503.43614434,0.00016438,2]
[350417167,1737850238374,-516.19,0.00016438,2]
[350417168,1737850238383,-500.0,0.00016438,2]
[350417169,1737850238393,-191.84176284,0.00016438,2]
[350417170,1737850238402,-626.57,0.00016438,2]
[350417171,1737850238411,-500.0,0.00016438,2]
[350417172,1737850238421,-500.0,0.00016438,2]
[350417173,1737850238430,-500.0,0.00016438,2]
[350417174,1737850238440,-500.0,0.00016438,2]
[350417175,1737850238450,-512.08064928,0.00016438,2]
[350417176,1737850238459,-500.0,0.00016438,2]
[350417177,1737850238469,-500.0,0.00016438,2]
[350417178,1737850238478,-501.03747084,0.00016438,2]
[350417179,1737850238487,-500.0,0.00016438,2]
[350417180,1737850238496,-573.53,0.00016438,2]
[350417181,1737850238506,-502.92755861,0.00016438,2]
[350417182,1737850238516,-500.0,0.00016438,2]
[350417183,1737850238525,-500.0,0.00016438,2]
[350417184,1737850238535,-501.13221072,0.00016438,2]
[350417185,1737850238545,-503.69295102,0.00016438,2]
[350417186,1737850238555,-516.04767782,0.00016438,2]
[350417187,1737850238564,-293.89958269,0.00016438,2]
[350417188,1737850238573,-500.0,0.00016438,2]
[350417189,1737850238583,-500.0,0.00016438,2]
[350417190,1737850238592,-167.72320469,0.00016438,2]
[350417191,1737850238601,-500.0,0.00016438,2]
[350417192,1737850238610,-501.02575637,0.00016438,2]
[350417193,1737850238619,-502.030207,0.00016438,2]
[350417194,1737850238628,-503.08563319,0.00016438,2]
[350417195,1737850238638,-500.0,0.00016438,2]
[350417196,1737850238650,-497.18814552,0.00016438,2]
[350417197,1737850238659,-500.0,0.00016438,2]
[350417198,1737850238669,-500.0,0.00016438,2]
[350417199,1737850238679,-500.0,0.00016438,2]
[350417200,1737850238689,-500.0,0.00016438,2]
[350417201,1737850238699,-501.03453781,0.00016438,2]
[350417202,1737850238708,-500.0,0.00016438,2]
[350417203,1737850238717,-503.25212837,0.00016438,2]
[350417204,1737850238727,-504.92461086,0.00016438,2]
[350417205,1737850238736,-500.0,0.00016438,2]
[350417206,1737850238746,-647.33875536,0.00016438,2]
[350417207,1737850238755,-500.0,0.00016438,2]
[350417208,1737850238764,-301.69102762,0.00016438,2]
[350417209,1737850238774,-222.60415752,0.00016438,2]
[350417210,1737850238783,-500.0,0.00016438,2]
[350417211,1737850238792,-477.78907011,0.00016438,2]
[350417212,1737850238802,-500.0,0.00016438,2]
[350417213,1737850238811,-500.0,0.00016438,2]
[350417214,1737850238820,-500.0,0.00016438,2]
[350417215,1737850238830,-500.0,0.00016438,2]
[350417216,1737850238839,-500.0,0.00016438,2]
[350417217,1737850238849,-500.0,0.00016438,2]
[350417218,1737850238858,-502.46572021,0.00016438,2]
[350417219,1737850238867,-502.74336708,0.00016438,2]
[350417220,1737850238876,-500.0,0.00016438,2]
[350417221,1737850238886,-647.31891659,0.00016438,2]
[350417222,1737850238895,-500.0,0.00016438,2]
[350417223,1737850238904,-500.0,0.00016438,2]
[350417224,1737850238913,-500.0,0.00016438,2]
[350417225,1737850238923,-500.0,0.00016438,2]
[350417226,1737850238932,-500.0,0.00016438,2]
[350417227,1737850238941,-500.0,0.00016438,2]
[350417228,1737850238951,-500.0,0.00016438,2]
[350417229,1737850238960,-500.0,0.00016438,2]
[350417230,1737850238969,-500.0,0.00016438,2]
[350417231,1737850238978,-501.99813614,0.00016438,2]
[350417232,1737850238988,-541.26,0.00016438,2]
[350417233,1737850238997,-500.0,0.00016438,2]
[350417234,1737850239006,-500.0,0.00016438,2]
[350417235,1737850239016,-543.18659799,0.00016438,2]
[350417236,1737850239026,-500.0,0.00016438,2]
[350417237,1737850239036,-500.0,0.00016438,2]
[350417238,1737850239045,-428.65960098,0.00016438,2]
[350417239,1737850239054,-500.0,0.00016438,2]
[350417240,1737850239063,-500.0,0.00016438,2]
[350417241,1737850239073,-500.0,0.00016438,2]
[350417242,1737850239083,-500.0,0.00016438,2]
[350417243,1737850239092,-500.0,0.00016438,2]
[350417244,1737850239102,-500.0,0.00016438,2]
[350417245,1737850239111,-500.0,0.00016438,2]
[350417246,1737850239121,-500.0,0.00016438,2]
[350417247,1737850239130,-500.0,0.00016438,2]
[350417248,1737850239139,-500.0,0.00016438,2]
[350417249,1737850239150,-500.0,0.00016438,2]
[350417250,1737850239160,-500.0,0.00016438,2]
[350417251,1737850239169,-500.0,0.00016438,2]
[350417252,1737850239179,-500.0,0.00016438,2]
[350417253,1737850239188,-501.67030172,0.00016438,2]
[350417254,1737850239197,-500.0,0.00016438,2]
[350417255,1737850239207,-500.0,0.00016438,2]
[350417256,1737850239216,-500.0,0.00016438,2]
[350417257,1737850239226,-500.0,0.00016438,2]
[350417258,1737850239238,-500.0,0.00016438,2]
[350417259,1737850239248,-225.16541054,0.00016438,2]
[350417260,1737850239257,-500.0,0.00016438,2]
[350417261,1737850239267,-500.0,0.00016438,2]
[350417262,1737850239277,-500.0,0.00016438,2]
[350417263,1737850239287,-501.63844109,0.00016438,2]
[350417264,1737850239297,-500.0,0.00016438,2]
[350417265,1737850239307,-500.0,0.00016438,2]
[350417266,1737850239316,-500.0,0.00016438,2]
[350417267,1737850239326,-500.0,0.00016438,2]
[350417268,1737850239335,-500.0,0.00016438,2]
[350417269,1737850239348,-500.0,0.00016438,2]
[350417270,1737850239358,-500.0,0.00016438,2]
[350417271,1737850239368,-500.0,0.00016438,2]
[350417272,1737850239377,-504.94883029,0.00016438,2]
[350417273,1737850239386,-500.0,0.00016438,2]
[350417274,1737850239396,-500.0,0.00016438,2]
[350417275,1737850239405,-500.0,0.00016438,2]
[350417276,1737850239415,-500.0,0.00016438,2]
[350417277,1737850239426,-500.0,0.00016438,2]
[350417278,1737850239437,-553.56901863,0.00016438,2]
[350417279,1737850239447,-500.0,0.00016438,2]
[350417280,1737850239456,-500.0,0.00016438,2]
[350417281,1737850239465,-500.0,0.00016438,2]
[350417282,1737850239476,-500.0,0.00016438,2]
[350417283,1737850239486,-500.0,0.00016438,2]
[350417284,1737850239495,-500.0,0.00016438,2]
[350417285,1737850239505,-503.64616594,0.00016438,2]
[350417286,1737850239515,-505.59568953,0.00016438,2]
[350417287,1737850239526,-500.0,0.00016438,2]
[350417288,1737850239537,-503.95833664,0.00016438,2]
[350417289,1737850239546,-502.81355144,0.00016438,2]
[350417290,1737850239556,-500.0,0.00016438,2]
[350417291,1737850239565,-500.0,0.00016438,2]
[350417292,1737850239574,-502.80895085,0.00016438,2]
[350417293,1737850239584,-500.0,0.00016438,2]
[350417294,1737850239594,-500.0,0.00016438,2]
[350417295,1737850239603,-500.0,0.00016438,2]
[350417296,1737850239612,-635.06306619,0.00016438,2]
[350417297,1737850239622,-507.87495675,0.00016438,2]
[350417298,1737850239631,-522.18235512,0.00016438,2]
[350417299,1737850239641,-500.0,0.00016438,2]
[350417300,1737850239651,-500.0,0.00016438,2]
[350417301,1737850239661,-500.0,0.00016438,2]
[350417302,1737850239671,-500.0,0.00016438,2]
[350417303,1737850239680,-500.0,0.00016438,2]
[350417304,1737850239690,-500.0,0.00016438,2]
[350417305,1737850239700,-500.0,0.00016438,2]
[350417306,1737850239710,-500.0,0.00016438,2]
[350417307,1737850239721,-500.0,0.00016438,2]
[350417309,1737850239731,-509.4227951,0.00016438,2]
[350417310,1737850239741,-500.0,0.00016438,2]
[350417311,1737850239750,-500.0,0.00016438,2]
[350417312,1737850239760,-500.0,0.00016438,2]
[350417313,1737850239769,-500.0,0.00016438,2]
[350417315,1737850239778,-500.0,0.00016438,2]
[350417316,1737850239787,-500.0,0.00016438,2]
[350417317,1737850239796,-491.05037151,0.00016438,2]
[350417318,1737850239805,-500.0,0.00016438,2]
[350417319,1737850239815,-500.0,0.00016438,2]
[350417320,1737850239834,-500.0,0.00016438,2]
[350417321,1737850239845,-503.05170192,0.00016438,2]
[350417322,1737850239856,-500.0,0.00016438,2]
[350417323,1737850239866,-500.0,0.00016438,2]
[350417324,1737850239876,-500.0,0.00016438,2]
[350417325,1737850239885,-500.0,0.00016438,2]
[350417326,1737850239895,-500.0,0.00016438,2]
[350417327,1737850239904,-500.0,0.00016438,2]
[350417328,1737850239914,-500.0,0.00016438,2]
[350417329,1737850239924,-500.0,0.00016438,2]
[350417330,1737850239934,-500.0,0.00016438,2]
[350417332,1737850239944,-500.0,0.00016438,2]
[350417333,1737850239954,-500.0,0.00016438,2]
[350417334,1737850239965,-355.14124457,0.00016438,2]
[350417335,1737850239974,-500.0,0.00016438,2]
[350417336,1737850239983,-500.0,0.00016438,2]
[350417338,1737850239993,-500.0,0.00016438,2]
[350417339,1737850240001,-500.0,0.00016438,2]
[350417341,1737850240010,-500.0,0.00016438,2]
[350417342,1737850240020,-500.0,0.00016438,2]
[350417343,1737850240030,-500.0,0.00016438,2]
[350417344,1737850240039,-506.23673172,0.00016438,2]
[350417345,1737850240049,-500.0,0.00016438,2]
[350417346,1737850240058,-500.0,0.00016438,2]
[350417347,1737850240068,-500.0,0.00016438,2]
[350417348,1737850240077,-500.0,0.00016438,2]
[350417349,1737850240087,-539.09,0.00016438,2]
[350417350,1737850240096,-500.0,0.00016438,2]
[350417352,1737850240105,-500.0,0.00016438,2]
[350417353,1737850240115,-500.0,0.00016438,2]
[350417354,1737850240124,-500.0,0.00016438,2]
[350417355,1737850240134,-500.0,0.00016438,2]
[350417356,1737850240143,-500.0,0.00016438,2]
[350417358,1737850240152,-500.0,0.00016438,2]
[350417359,1737850240162,-500.0,0.00016438,2]
[350417360,1737850240172,-8173.94,0.00016438,2]
[350417361,1737850240181,-500.0,0.00016438,2]
[350417362,1737850240191,-500.0,0.00016438,2]
[350417363,1737850240200,-503.45073339,0.00016438,2]
[350417365,1737850240210,-500.0,0.00016438,2]
[350417366,1737850240220,-500.0,0.00016438,2]
[350417367,1737850240229,-537.1,0.00016438,2]
[350417368,1737850240238,-500.0,0.00016438,2]
[350417369,1737850240247,-500.0,0.00016438,2]
[350417370,1737850240257,-500.0,0.00016438,2]
[350417371,1737850240266,-500.0,0.00016438,2]
[350417372,1737850240275,-500.0,0.00016438,2]
[350417373,1737850240285,-500.0,0.00016438,2]
[350417374,1737850240294,-500.0,0.00016438,2]
[350417375,1737850240303,-500.0,0.00016438,2]
[350417376,1737850240313,-500.0,0.00016438,2]
[350417377,1737850240323,-500.0,0.00016438,2]
[350417378,1737850240333,-500.0,0.00016438,2]
[350417379,1737850240342,-500.0,0.00016438,2]
[350417380,1737850240355,-500.0,0.00016438,2]
[350417381,1737850240364,-500.0,0.00016438,2]
[350417382,1737850240374,-500.0,0.00016438,2]
[350417383,1737850240383,-500.0,0.00016438,2]
[350417384,1737850240393,-500.0,0.00016438,2]
[350417385,1737850240402,-646.02,0.00016438,2]
[350417386,1737850240412,-500.0,0.00016438,2]
[350417387,1737850240422,-947.53,0.00016438,2]
[350417388,1737850240431,-500.0,0.00016438,2]
[350417389,1737850240440,-500.0,0.00016438,2]
[350417390,1737850240450,-500.0,0.00016438,2]
[350417391,1737850240459,-500.0,0.00016438,2]
[350417392,1737850240469,-500.0,0.00016438,2]
[350417393,1737850240478,-500.0,0.00016438,2]
[350417394,1737850240487,-500.0,0.00016438,2]
[350417395,1737850240497,-500.0,0.00016438,2]
[350417396,1737850240506,-500.0,0.00016438,2]
[350417397,1737850240515,-500.0,0.00016438,2]
[350417398,1737850240525,-500.0,0.00016438,2]
[350417399,1737850240534,-500.0,0.00016438,2]
[350417400,1737850240544,-500.0,0.00016438,2]
[350417401,1737850240554,-680.09,0.00016438,2]
[350417402,1737850240563,-500.0,0.00016438,2]
[350417403,1737850240572,-500.0,0.00016438,2]
[350417404,1737850240581,-1176.62,0.00016438,2]
[350417405,1737850240591,-500.0,0.00016438,2]
[350417406,1737850240600,-500.0,0.00016438,2]
[350417407,1737850240609,-2266.17,0.00016438,2]
[350417408,1737850240619,-500.0,0.00016438,2]
[350417409,1737850240629,-500.0,0.00016438,2]
[350417410,1737850240639,-500.0,0.00016438,2]
[350417411,1737850240649,-500.0,0.00016438,2]
[350417412,1737850240658,-500.0,0.00016438,2]
[350417413,1737850240668,-500.0,0.00016438,2]
[350417414,1737850240677,-500.0,0.00016438,2]
[350417415,1737850240687,-500.0,0.00016438,2]
[350417416,1737850240697,-500.0,0.00016438,2]
[350417417,1737850240707,-500.0,0.00016438,2]
[350417418,1737850240716,-500.0,0.00016438,2]
[350417419,1737850240725,-500.0,0.00016438,2]
[350417420,1737850240735,-500.0,0.00016438,2]
[350417421,1737850240744,-500.0,0.00016438,2]
[350417422,1737850240754,-549.19365797,0.00016438,2]
[350417423,1737850240763,-502.9610341,0.00016438,2]
[350417424,1737850240773,-512.6944992,0.00016438,2]
[350417425,1737850240782,-500.0,0.00016438,2]
[350417426,1737850240792,-500.0,0.00016438,2]
[350417427,1737850240803,-500.0,0.00016438,2]
[350417428,1737850240812,-500.0,0.00016438,2]
[350417429,1737850240821,-500.0,0.00016438,2]
[350417430,1737850240831,-531.3994437,0.00016438,2]
[350417431,1737850240840,-503.19520352,0.00016438,2]
[350417432,1737850240851,-500.0,0.00016438,2]
[350417433,1737850240861,-552.07228922,0.00016438,2]
[350417434,1737850240870,-1409.41,0.00016438,2]
[350417435,1737850240880,-500.0,0.00016438,2]
[350417436,1737850240890,-5128.52,0.00016438,2]
[350417437,1737850240899,-510.52460762,0.00016438,2]
[350417438,1737850240908,-500.61550216,0.00016438,2]
[350417439,1737850240918,-158.86,0.00016438,2]
[350417440,1737850240927,-500.0,0.00016438,2]
[350417441,1737850240937,-500.0,0.00016438,2]
[350417442,1737850240947,-500.0,0.00016438,2]
[350417443,1737850240957,-500.0,0.00016438,2]
[350417444,1737850240966,-500.0,0.00016438,2]
[350417445,1737850240975,-500.0,0.00016438,2]
[350417446,1737850240985,-500.0,0.00016438,2]
[350417447,1737850240994,-640.41,0.00016438,2]
[350417448,1737850241003,-1963.69,0.00016438,2]
[350417449,1737850241013,-500.0,0.00016438,2]
[350417450,1737850241022,-500.0,0.00016438,2]
[350417451,1737850241031,-500.0,0.00016438,2]
[350417452,1737850241040,-500.0,0.00016438,2]
[350417453,1737850241049,-500.0,0.00016438,2]
[350417454,1737850241059,-500.0,0.00016438,2]
[350417455,1737850241068,-500.0,0.00016438,2]
[350417456,1737850241078,-500.0,0.00016438,2]
[350417457,1737850241087,-500.0,0.00016438,2]
[350417458,1737850241096,-500.0,0.00016438,2]
[350417459,1737850241105,-500.0,0.00016438,2]
[350417460,1737850241114,-500.0,0.00016438,2]
[350417461,1737850241124,-882.91,0.00016438,2]
[350417462,1737850241134,-768.36,0.00016438,2]
[350417463,1737850241143,-500.0,0.00016438,2]
[350417464,1737850241153,-129.85638879,0.00016438,2]
[350417465,1737850241171,-370.14361121,0.00016438,2]
[350417466,1737850241180,-696.88,0.00016438,2]
[350417467,1737850241190,-500.0,0.00016438,2]
[350417468,1737850241200,-500.0,0.00016438,2]
[350417469,1737850241210,-500.0,0.00016438,2]
[350417470,1737850241219,-500.68830576,0.00016438,2]
[350417471,1737850241231,-2117.2,0.00016438,2]
[350417472,1737850241596,-705.00169424,0.00016438,2]
[350417473,1737850241606,-500.0,0.00016438,2]
[350417474,1737850241616,-500.0,0.00016438,2]
[350417475,1737850241626,-500.0,0.00016438,2]
[350417476,1737850241635,-503.88523968,0.00016438,2]
[350417477,1737850241645,-505.96190816,0.00016438,2]
[350417478,1737850241654,-500.0,0.00016438,2]
[350417479,1737850241663,-500.0,0.00016438,2]
[350417480,1737850241672,-613.36,0.00016438,2]
[350417481,1737850241682,-501.55256837,0.00016438,2]
[350417482,1737850241691,-500.0,0.00016438,2]
[350417483,1737850241702,-500.0,0.00016438,2]
[350417484,1737850241711,-417.47102027,0.00016438,2]
[350417485,1737850241720,-500.0,0.00016438,2]
[350417486,1737850241730,-500.0,0.00016438,2]
[350417487,1737850241739,-500.0,0.00016438,2]
[350417488,1737850241749,-500.0,0.00016438,2]
[350417489,1737850241758,-500.0,0.00016438,2]
[350417490,1737850241767,-500.0,0.00016438,2]
[350417491,1737850241776,-776.95,0.00016438,2]
[350417492,1737850241786,-500.0,0.00016473,2]
[350417493,1737850241795,-500.0,0.00016473,2]
[350417494,1737850241805,-504.93623737,0.0001657,2]
[350417495,1737850241814,-500.0,0.00016573,2]
[350417496,1737850241824,-242.52736349,0.00016574,2]
[350417497,1737850241833,-500.0,0.00016574,2]
[350417498,1737850241842,-500.0,0.00016574,2]
[350417499,1737850241852,-211.27,0.00016574,2]
[350417500,1737850241861,-500.0,0.00016575,2]
[350417501,1737850241870,-500.0,0.00016575,2]
[350417502,1737850241879,-505.80385767,0.00016575,2]
[350417503,1737850241888,-500.0,0.00016575,2]
[350417504,1737850241897,-500.0,0.00016575,2]
[350417505,1737850241907,-500.0,0.00016575,2]
[350417506,1737850241916,-500.0,0.00016575,2]
[350417507,1737850241925,-177.78011075,0.00016575,2]
[350417536,1737850386387,166.447179,0.00013699,2]
[350417540,1737851011792,400.0,0.00013973,2]
[350417547,1737851277389,-300.0,0.00015402,2]
[350417548,1737851277411,-20254.682767,0.00015403,2]
[350417549,1737851277431,-208.896,0.0001587,2]
[350417550,1737851277452,-500.0,0.00015972,2]
[350417551,1737851277472,-197.01006944,0.0001627,2]
[350417552,1737851277493,-554.47355364,0.00016313,2]
[350417553,1737851277514,-152.66516287,0.00016338,2]
[350417554,1737851277534,-606.85948498,0.00016437,2]
[350417555,1737851277554,-1350.69,0.00016438,2]
[350417556,1737851277575,-500.0,0.00016438,2]
[350417557,1737851277597,-500.0,0.00016438,2]
[350417558,1737851277619,-500.0,0.00016438,2]
[350417559,1737851277639,-500.0,0.00016438,2]
[350417560,1737851277659,-500.0,0.00016438,2]
[350417561,1737851277680,-500.0,0.00016438,2]
[350417562,1737851277700,-500.0,0.00016438,2]
[350417563,1737851277720,-500.0,0.00016438,2]
[350417564,1737851277741,-500.0,0.00016438,2]
[350417565,1737851277763,-500.0,0.00016438,2]
[350417566,1737851277784,-501.72085058,0.00016438,2]
[350417567,1737851277816,-356.67732934,0.00016438,2]
[350417568,1737851277839,-500.0,0.00016438,2]
[350417569,1737851277861,-500.0,0.00016438,2]
[350417570,1737851277883,-500.0,0.00016438,2]
[350417571,1737851277904,-500.0,0.00016438,2]
[350417572,1737851277927,-504.97231072,0.00016438,2]
[350417573,1737851277948,-500.0,0.00016438,2]
[350417574,1737851277970,-500.0,0.00016438,2]
[350417575,1737851277992,-500.0,0.00016438,2]
[350417576,1737851278014,-500.0,0.00016438,2]
[350417577,1737851278035,-500.0,0.00016438,2]
[350417578,1737851278058,-500.0,0.00016438,2]
[350417579,1737851278081,-500.0,0.00016438,2]
[350417580,1737851278105,-500.0,0.00016438,2]
[350417581,1737851278127,-500.0,0.00016438,2]
[350417582,1737851278151,-500.0,0.00016438,2]
[350417583,1737851278173,-500.0,0.00016438,2]
[350417584,1737851278196,-500.0,0.00016438,2]
[350417585,1737851278220,-4995.47,0.00016438,2]
[350417586,1737851278243,-500.0,0.00016438,2]
[350417587,1737851278267,-500.0,0.00016438,2]